[Event "Estonian Chess Championship 2025"]
[Site "Tallinn, EE"]
[Date "2025.12.12"]
[Round "1.2"]
[White "Chukavin, Kirill"]
[Black "Obolonin, Filipp"]
[Result "1-0"]
[Board "4"]
[TimeControl "5400+30"]
[WhiteFideId "4503023"]
[BlackFideId "4505549"]
[WhiteTitle "FM"]
[WhiteElo "2358"]
[BlackElo "2103"]
[WhiteTeam "EST"]
[BlackTeam "EST"]
[WhiteClock "0:10:25"]
[BlackClock "0:23:00"]
[Variant "Standard"]

1. e4 {

[%clk 1:30:57]

}  e5 {

[%clk 1:28:47]

} 2. Nf3 {

[%clk 1:30:43]

}  Nc6 {

[%clk 1:29:02]

} 3. Bb5 {

[%clk 1:30:46]

}  a6 {

[%clk 1:29:26]

} 4. Ba4 {

[%clk 1:30:47]

}  Nf6 {

[%clk 1:29:50]

} 5. O-O {

[%clk 1:29:24]

}  b5 {

[%clk 1:30:02]

} 6. Bb3 {

[%clk 1:29:45]

}  Bc5 {

[%clk 1:30:25]

} 7. d3 {

[%clk 1:24:09]

}  d6 {

[%clk 1:27:51]

} 8. a3 {

[%clk 1:23:45]

}  Bg4 {

[%clk 1:26:55]

} 9. c3 {

[%clk 1:20:00]

}  h6 {

[%clk 1:21:04]

} 10. h3 {

[%clk 1:19:28]

}  Bd7 {

[%clk 1:17:04]

} 11. Re1 {

[%clk 1:11:31]

}  Bb6 {

[%clk 1:15:04]

} 12. Nbd2 {

[%clk 1:10:21]

}  g5 {

[%clk 1:15:05]

} 13. Nf1 {

[%clk 0:53:24]

}  Ne7 {

[%clk 1:10:51]

} 14. d4 {

[%clk 0:39:58]

}  Ng6 {

[%clk 1:10:08]

} 15. dxe5 {

[%clk 0:35:21]

}  Nxe5 {

[%clk 1:10:25]

} 16. Be3 {

[%clk 0:34:11]

}  Rb8 {

[%clk 1:09:52]

} 17. Bxb6 {

[%clk 0:22:38]

}  Rxb6 {

[%clk 1:09:49]

} 18. Ne3 {

[%clk 0:22:57]

}  O-O {

[%clk 1:08:14]

} 19. Nd4 {

[%clk 0:17:13]

}  Kh7 {

[%clk 1:03:59]

} 20. Ndf5 {

[%clk 0:16:34]

}  Be6 {

[%clk 0:54:34]

} 21. Bc2 {

[%clk 0:16:28]

}  Rh8 {

[%clk 0:51:24]

} 22. Rf1 {

[%clk 0:15:41]

}  Kg8 {

[%clk 0:50:32]

} 23. f4 {

[%clk 0:15:16]

}  gxf4 {

[%clk 0:44:19]

} 24. Rxf4 {

[%clk 0:15:41]

}  Kf8 {

[%clk 0:43:24]

} 25. Nd4 {

[%clk 0:12:13]

}  h5 {

[%clk 0:41:03]

} 26. Qd2 {

[%clk 0:11:00]

}  Ke8 {

[%clk 0:37:37]

} 27. a4 {

[%clk 0:11:10]

}  c5 {

[%clk 0:32:24]

} 28. Ndf5 {

[%clk 0:09:51]

}  Kf8 {

[%clk 0:26:59]

} 29. axb5 {

[%clk 0:07:45]

}  axb5 {

[%clk 0:26:23]

} 30. Raf1 {

[%clk 0:07:18]

}  Ne8 {

[%clk 0:21:19]

} 31. Nd5 {

[%clk 0:06:15]

}  Rb7 {

[%clk 0:16:28]

} 32. b4 {

[%clk 0:05:25]

}  Rg8 {

[%clk 0:14:24]

} 33. bxc5 {

[%clk 0:04:27]

}  dxc5 {

[%clk 0:14:47]

} 34. Qe3 {

[%clk 0:04:32]

}  Qc8 {

[%clk 0:13:53]

} 35. Rh4 {

[%clk 0:03:38]

}  Bxf5 {

[%clk 0:09:59]

} 36. Qh6+ {

[%clk 0:02:30]

}  Rg7 {

[%clk 0:08:25]

} 37. Qh8+ {

[%clk 0:02:51]

}  Rg8 {

[%clk 0:08:44]

} 38. Qh6+ {

[%clk 0:03:11]

}  Rg7 {

[%clk 0:09:06]

} 39. exf5 {

[%clk 0:03:03]

}  f6 {

[%clk 0:07:58]

} 40. Nxf6 {

[%clk 0:18:01]

}  Nf7 {

[%clk 0:23:02]

} 41. Nh7+ {

[%clk 0:15:33]

}  Kg8 {

[%clk 0:23:00]

} 42. Qxh5 {

[%clk 0:10:25]

} 1-0

[Event "Estonian Chess Championship 2025"]
[Site "Tallinn, EE"]
[Date "2025.12.11"]
[Round "1.1"]
[White "Seeman, Tarvo"]
[Black "Gorkov, Kirill"]
[Result "1-0"]
[Board "5"]
[TimeControl "5400+30"]
[WhiteFideId "4500547"]
[BlackFideId "4516214"]
[WhiteTitle "IM"]
[WhiteElo "2355"]
[BlackElo "2157"]
[WhiteTeam "EST"]
[BlackTeam "EST"]
[WhiteClock "0:04:02"]
[BlackClock "0:04:19"]
[Variant "Standard"]

1. c4 {

[%clk 1:29:16]

}  c5 {

[%clk 1:30:54]

} 2. Nf3 {

[%clk 1:29:29]

}  Nc6 {

[%clk 1:31:18]

} 3. Nc3 {

[%clk 1:29:51]

}  e5 {

[%clk 1:31:28]

} 4. e3 {

[%clk 1:29:59]

}  Nf6 {

[%clk 1:31:52]

} 5. d4 {

[%clk 1:30:20]

}  e4 {

[%clk 1:32:08]

} 6. Ne5 {

[%clk 1:30:21]

}  h5 {

[%clk 1:30:23]

} 7. Be2 {

[%clk 1:28:52]

}  Qc7 {

[%clk 1:28:17]

} 8. f4 {

[%clk 1:25:27]

}  cxd4 {

[%clk 1:23:02]

} 9. exd4 {

[%clk 1:25:35]

}  d6 {

[%clk 1:22:55]

} 10. Nxc6 {

[%clk 1:22:52]

}  bxc6 {

[%clk 1:23:17]

} 11. d5 {

[%clk 1:15:46]

}  Be7 {

[%clk 1:10:06]

} 12. O-O {

[%clk 1:08:00]

}  cxd5 {

[%clk 1:05:42]

} 13. Nxd5 {

[%clk 0:55:27]

}  Nxd5 {

[%clk 1:04:59]

} 14. cxd5 {

[%clk 0:55:11]

}  Qc5+ {

[%clk 1:01:38]

} 15. Kh1 {

[%clk 0:55:03]

}  Bb7 {

[%clk 0:57:56]

} 16. Qa4+ {

[%clk 0:52:39]

}  Kf8 {

[%clk 0:58:23]

} 17. Qxe4 {

[%clk 0:52:54]

}  Qxd5 {

[%clk 0:54:36]

} 18. Qxd5 {

[%clk 0:50:50]

}  Bxd5 {

[%clk 0:55:02]

} 19. Bf3 {

[%clk 0:41:37]

}  Bxf3 {

[%clk 0:55:05]

} 20. Rxf3 {

[%clk 0:42:01]

}  f5 {

[%clk 0:41:25]

} 21. Bd2 {

[%clk 0:35:56]

}  Kf7 {

[%clk 0:39:20]

} 22. Bc3 {

[%clk 0:32:55]

}  Rhc8 {

[%clk 0:35:52]

} 23. Rd1 {

[%clk 0:29:12]

}  Rab8 {

[%clk 0:34:38]

} 24. g3 {

[%clk 0:27:20]

}  Rb6 {

[%clk 0:28:53]

} 25. Rfd3 {

[%clk 0:22:00]

}  Rb5 {

[%clk 0:23:16]

} 26. Kg2 {

[%clk 0:21:59]

}  Rc4 {

[%clk 0:22:01]

} 27. Rd4 {

[%clk 0:19:04]

}  Rxd4 {

[%clk 0:21:45]

} 28. Rxd4 {

[%clk 0:19:22]

}  Bf6 {

[%clk 0:21:26]

} 29. Ra4 {

[%clk 0:17:17]

}  Bxc3 {

[%clk 0:21:47]

} 30. Rxa7+ {

[%clk 0:16:51]

}  Kf6 {

[%clk 0:22:10]

} 31. bxc3 {

[%clk 0:17:12]

}  Rb2+ {

[%clk 0:22:21]

} 32. Kh3 {

[%clk 0:16:56]

}  g6 {

[%clk 0:21:12]

} 33. a4 {

[%clk 0:14:38]

}  Rb3 {

[%clk 0:15:19]

} 34. c4 {

[%clk 0:06:40]

}  Rb4 {

[%clk 0:14:45]

} 35. Ra6 {

[%clk 0:03:02]

}  Rxc4 {

[%clk 0:15:02]

} 36. Rxd6+ {

[%clk 0:03:22]

}  Kg7 {

[%clk 0:15:27]

} 37. Kh4 {

[%clk 0:03:25]

}  Kh6 {

[%clk 0:15:21]

} 38. Ra6 {

[%clk 0:01:42]

}  Rc2 {

[%clk 0:15:18]

} 39. Kh3 {

[%clk 0:01:43]

}  Ra2 {

[%clk 0:13:24]

} 40. Ra7 {

[%clk 0:16:59]

}  Rf2 {

[%clk 0:24:48]

} 41. a5 {

[%clk 0:16:54]

}  Rb2 {

[%clk 0:24:24]

} 42. Ra8 {

[%clk 0:16:32]

}  Ra2 {

[%clk 0:24:42]

} 43. Ra6 {

[%clk 0:14:30]

}  Rb2 {

[%clk 0:23:51]

} 44. Ra7 {

[%clk 0:14:13]

}  Rc2 {

[%clk 0:24:01]

} 45. a6 {

[%clk 0:13:12]

}  Ra2 {

[%clk 0:24:27]

} 46. Ra8 {

[%clk 0:13:24]

}  Kh7 {

[%clk 0:24:30]

} 47. Kh4 {

[%clk 0:10:28]

}  Kh6 {

[%clk 0:22:36]

} 48. h3 {

[%clk 0:05:02]

}  Ra3 {

[%clk 0:15:23]

} 49. Rh8+ {

[%clk 0:03:47]

}  Kg7 {

[%clk 0:15:48]

} 50. Rb8 {

[%clk 0:03:54]

}  Kh6 {

[%clk 0:11:44]

} 51. Ra8 {

[%clk 0:03:55]

}  Ra4 {

[%clk 0:11:12]

} 52. g4 {

[%clk 0:02:45]

}  hxg4 {

[%clk 0:11:22]

} 53. hxg4 {

[%clk 0:02:57]

}  fxg4 {

[%clk 0:10:53]

} 54. Kxg4 {

[%clk 0:03:16]

}  Ra3 {

[%clk 0:10:52]

} 55. Kh4 {

[%clk 0:02:27]

}  Kg7 {

[%clk 0:10:09]

} 56. Kg5 {

[%clk 0:02:12]

}  Ra5+ {

[%clk 0:10:17]

} 57. Kg4 {

[%clk 0:02:37]

}  Ra3 {

[%clk 0:10:40]

} 58. f5 {

[%clk 0:02:46]

}  gxf5+ {

[%clk 0:10:46]

} 59. Kxf5 {

[%clk 0:03:13]

}  Kh7 {

[%clk 0:09:35]

} 60. Ke5 {

[%clk 0:03:31]

}  Ra5+ {

[%clk 0:01:21]

} 61. Kd6 {

[%clk 0:03:27]

}  Rg5 {

[%clk 0:01:39]

} 62. Re8 {

[%clk 0:02:41]

}  Ra5 {

[%clk 0:01:52]

} 63. Re7+ {

[%clk 0:02:56]

}  Kg6 {

[%clk 0:02:15]

} 64. a7 {

[%clk 0:03:20]

}  Ra6+ {

[%clk 0:02:10]

} 65. Kc5 {

[%clk 0:03:31]

}  Kf6 {

[%clk 0:02:38]

} 66. Rh7 {

[%clk 0:03:12]

}  Ke5 {

[%clk 0:02:54]

} 67. Kb5 {

[%clk 0:03:03]

}  Ra1 {

[%clk 0:03:16]

} 68. Kc6 {

[%clk 0:03:06]

}  Rc1+ {

[%clk 0:03:00]

} 69. Kb7 {

[%clk 0:03:26]

}  Rb1+ {

[%clk 0:03:09]

} 70. Kc8 {

[%clk 0:03:48]

}  Ra1 {

[%clk 0:03:24]

} 71. Kb8 {

[%clk 0:04:07]

}  Rb1+ {

[%clk 0:03:51]

} 72. Rb7 {

[%clk 0:04:28]

}  Rg1 {

[%clk 0:04:19]

} 73. a8=Q {

[%clk 0:04:02]

} 1-0

[Event "Estonian Chess Championship 2025"]
[Site "Tallinn, EE"]
[Date "2025.12.12"]
[Round "1.2"]
[White "Gorkov, Kirill"]
[Black "Seeman, Tarvo"]
[Result "0-1"]
[Board "5"]
[TimeControl "5400+30"]
[WhiteFideId "4516214"]
[BlackFideId "4500547"]
[BlackTitle "IM"]
[WhiteElo "2157"]
[BlackElo "2355"]
[WhiteTeam "EST"]
[BlackTeam "EST"]
[WhiteClock "0:00:35"]
[BlackClock "0:01:49"]
[Variant "Standard"]

1. e4 {

[%clk 1:30:56]

}  e6 {

[%clk 1:28:52]

} 2. b3 {

[%clk 1:31:16]

}  d5 {

[%clk 1:29:15]

} 3. Bb2 {

[%clk 1:31:41]

}  Nc6 {

[%clk 1:29:38]

} 4. e5 {

[%clk 1:32:03]

}  d4 {

[%clk 1:29:55]

} 5. Nf3 {

[%clk 1:32:18]

}  Qd5 {

[%clk 1:29:49]

} 6. Qe2 {

[%clk 1:27:40]

}  b6 {

[%clk 1:29:26]

} 7. g3 {

[%clk 1:02:28]

}  Bb7 {

[%clk 1:26:48]

} 8. Bg2 {

[%clk 1:02:48]

}  d3 {

[%clk 1:16:58]

} 9. cxd3 {

[%clk 0:59:38]

}  O-O-O {

[%clk 1:15:03]

} 10. d4 {

[%clk 0:54:42]

}  Nb4 {

[%clk 1:10:48]

} 11. Nh4 {

[%clk 0:50:29]

}  Qa5 {

[%clk 0:56:10]

} 12. Bxb7+ {

[%clk 0:49:59]

}  Kxb7 {

[%clk 0:56:39]

} 13. Na3 {

[%clk 0:41:37]

}  Qa6 {

[%clk 0:39:04]

} 14. Qe4+ {

[%clk 0:35:32]

}  Kb8 {

[%clk 0:39:08]

} 15. Nc4 {

[%clk 0:35:38]

}  Qb7 {

[%clk 0:35:16]

} 16. Qxb7+ {

[%clk 0:35:29]

}  Kxb7 {

[%clk 0:35:44]

} 17. O-O {

[%clk 0:30:10]

}  Nc2 {

[%clk 0:34:34]

} 18. Rac1 {

[%clk 0:30:19]

}  Nxd4 {

[%clk 0:34:58]

} 19. Kg2 {

[%clk 0:28:41]

}  Ne7 {

[%clk 0:31:40]

} 20. Ne3 {

[%clk 0:22:17]

}  c5 {

[%clk 0:21:15]

} 21. f4 {

[%clk 0:15:42]

}  Nef5 {

[%clk 0:17:15]

} 22. Nexf5 {

[%clk 0:10:00]

}  Nxf5 {

[%clk 0:17:23]

} 23. Nf3 {

[%clk 0:10:20]

}  Be7 {

[%clk 0:17:00]

} 24. Bc3 {

[%clk 0:09:36]

}  h5 {

[%clk 0:13:17]

} 25. h3 {

[%clk 0:09:36]

}  Rd3 {

[%clk 0:11:39]

} 26. Kf2 {

[%clk 0:08:55]

}  b5 {

[%clk 0:08:32]

} 27. Rg1 {

[%clk 0:08:10]

}  Rhd8 {

[%clk 0:06:03]

} 28. g4 {

[%clk 0:06:29]

}  Nh4 {

[%clk 0:05:18]

} 29. Ng5 {

[%clk 0:03:48]

}  Bxg5 {

[%clk 0:05:00]

} 30. fxg5 {

[%clk 0:04:15]

}  b4 {

[%clk 0:04:01]

} 31. Ba1 {

[%clk 0:04:32]

}  Rxh3 {

[%clk 0:03:53]

} 32. d4 {

[%clk 0:04:33]

}  hxg4 {

[%clk 0:02:50]

} 33. Rxc5 {

[%clk 0:04:42]

}  Nf5 {

[%clk 0:02:21]

} 34. Rxg4 {

[%clk 0:01:46]

}  Rh2+ {

[%clk 0:02:23]

} 35. Kf3 {

[%clk 0:01:01]

}  Rdh8 {

[%clk 0:01:50]

} 36. Rg1 {

[%clk 0:00:40]

}  R8h3+ {

[%clk 0:01:48]

} 37. Kf4 {

[%clk 0:00:35]

}  Rf2+ {

[%clk 0:01:49]

} 0-1

[Event "Estonian Chess Championship 2025"]
[Site "Tallinn, EE"]
[Date "2025.12.11"]
[Round "1.1"]
[White "Andrijashkin, Deniss"]
[Black "Krivenko, Dion"]
[Result "0-1"]
[Board "6"]
[TimeControl "5400+30"]
[WhiteFideId "4504631"]
[BlackFideId "4508378"]
[BlackTitle "FM"]
[WhiteElo "2187"]
[BlackElo "2269"]
[WhiteTeam "EST"]
[BlackTeam "EST"]
[WhiteClock "0:17:16"]
[BlackClock "0:01:35"]
[Variant "Standard"]

1. e4 {

[%clk 1:30:52]

}  c5 {

[%clk 1:30:31]

} 2. Nf3 {

[%clk 1:31:14]

}  d6 {

[%clk 1:30:26]

} 3. d4 {

[%clk 1:31:25]

}  cxd4 {

[%clk 1:29:20]

} 4. Nxd4 {

[%clk 1:31:50]

}  Nf6 {

[%clk 1:29:41]

} 5. Nc3 {

[%clk 1:32:14]

}  Bd7 {

[%clk 1:27:18]

} 6. Rg1 {

[%clk 1:28:38]

}  Nc6 {

[%clk 1:19:26]

} 7. g4 {

[%clk 1:21:54]

}  Nxd4 {

[%clk 1:13:34]

} 8. Qxd4 {

[%clk 1:22:19]

}  e5 {

[%clk 1:11:29]

} 9. Qd1 {

[%clk 1:16:34]

}  Bc6 {

[%clk 1:10:03]

} 10. Bd3 {

[%clk 1:10:02]

}  d5 {

[%clk 1:03:28]

} 11. exd5 {

[%clk 1:08:44]

}  Nxd5 {

[%clk 1:03:45]

} 12. Qe2 {

[%clk 1:06:31]

}  Nxc3 {

[%clk 0:56:25]

} 13. Qxe5+ {

[%clk 1:00:22]

}  Be7 {

[%clk 0:56:38]

} 14. Qxc3 {

[%clk 0:15:53]

}  O-O {

[%clk 0:49:38]

} 15. Be3 {

[%clk 0:16:16]

}  Qd5 {

[%clk 0:37:47]

} 16. Bc4 {

[%clk 0:14:09]

}  Qd6 {

[%clk 0:34:54]

} 17. Qd4 {

[%clk 0:11:03]

}  Qxh2 {

[%clk 0:30:49]

} 18. O-O-O {

[%clk 0:11:15]

}  Rfd8 {

[%clk 0:25:18]

} 19. Qf4 {

[%clk 0:05:18]

}  Qxf4 {

[%clk 0:24:00]

} 20. Bxf4 {

[%clk 0:05:48]

}  Bc5 {

[%clk 0:23:30]

} 21. Rxd8+ {

[%clk 0:05:15]

}  Rxd8 {

[%clk 0:23:51]

} 22. Be3 {

[%clk 0:05:36]

}  Bxe3+ {

[%clk 0:19:56]

} 23. fxe3 {

[%clk 0:06:05]

}  g5 {

[%clk 0:20:05]

} 24. Bd3 {

[%clk 0:05:03]

}  Kg7 {

[%clk 0:20:06]

} 25. Rg3 {

[%clk 0:02:42]

}  Rd6 {

[%clk 0:18:25]

} 26. b4 {

[%clk 0:02:02]

}  Rh6 {

[%clk 0:14:33]

} 27. c4 {

[%clk 0:01:01]

}  Rh2 {

[%clk 0:12:38]

} 28. Bc2 {

[%clk 0:01:16]

}  Bd7 {

[%clk 0:06:47]

} 29. a3 {

[%clk 0:00:55]

}  b6 {

[%clk 0:05:50]

} 30. a4 {

[%clk 0:00:38]

}  Rh4 {

[%clk 0:04:58]

} 31. Bd1 {

[%clk 0:00:46]

}  h5 {

[%clk 0:04:10]

} 32. gxh5 {

[%clk 0:00:36]

}  Rxc4+ {

[%clk 0:04:31]

} 33. Kd2 {

[%clk 0:00:34]

}  f6 {

[%clk 0:04:01]

} 34. b5 {

[%clk 0:00:52]

}  Be8 {

[%clk 0:03:05]

} 35. Rh3 {

[%clk 0:00:32]

}  Rh4 {

[%clk 0:02:11]

} 36. Rg3 {

[%clk 0:00:35]

}  Bxh5 {

[%clk 0:02:08]

} 37. Bb3 {

[%clk 0:01:03]

}  Bf7 {

[%clk 0:02:09]

} 38. Bc2 {

[%clk 0:01:30]

}  Bg6 {

[%clk 0:02:08]

} 39. Bb3 {

[%clk 0:01:53]

}  Be4 {

[%clk 0:01:35]

} 40. Kc3 {

[%clk 0:17:16]

}  Kg6 {

[%clk 0:01:35]

} 41. Rg1 {

[%clk 0:17:16]

} 0-1

[Event "Estonian Chess Championship 2025"]
[Site "Tallinn, EE"]
[Date "2025.12.12"]
[Round "1.2"]
[White "Krivenko, Dion"]
[Black "Andrijashkin, Deniss"]
[Result "1-0"]
[Board "6"]
[TimeControl "5400+30"]
[WhiteFideId "4508378"]
[BlackFideId "4504631"]
[WhiteTitle "FM"]
[WhiteElo "2269"]
[BlackElo "2187"]
[WhiteTeam "EST"]
[BlackTeam "EST"]
[WhiteClock "0:00:46"]
[BlackClock "0:02:34"]
[Variant "Standard"]

1. e4 {

[%clk 1:30:58]

}  c5 {

[%clk 1:25:15]

} 2. Nf3 {

[%clk 1:31:23]

}  e6 {

[%clk 1:25:19]

} 3. Qe2 {

[%clk 1:30:26]

}  Nc6 {

[%clk 1:25:29]

} 4. g3 {

[%clk 1:30:48]

}  g6 {

[%clk 1:24:56]

} 5. Bg2 {

[%clk 1:31:10]

}  Bg7 {

[%clk 1:24:50]

} 6. h4 {

[%clk 1:31:29]

}  h6 {

[%clk 1:19:41]

} 7. c3 {

[%clk 1:31:37]

}  e5 {

[%clk 1:18:35]

} 8. O-O {

[%clk 1:30:21]

}  Nge7 {

[%clk 1:16:53]

} 9. Na3 {

[%clk 1:30:40]

}  d6 {

[%clk 1:16:48]

} 10. Nc2 {

[%clk 1:29:43]

}  O-O {

[%clk 1:13:39]

} 11. b4 {

[%clk 1:24:23]

}  cxb4 {

[%clk 1:02:38]

} 12. cxb4 {

[%clk 1:17:21]

}  a6 {

[%clk 1:01:49]

} 13. Bb2 {

[%clk 1:13:29]

}  f5 {

[%clk 0:57:53]

} 14. d4 {

[%clk 1:03:42]

}  fxe4 {

[%clk 0:47:39]

} 15. Qxe4 {

[%clk 1:02:21]

}  Bf5 {

[%clk 0:41:26]

} 16. Qe2 {

[%clk 1:02:05]

}  e4 {

[%clk 0:40:48]

} 17. Nd2 {

[%clk 1:00:18]

}  d5 {

[%clk 0:39:57]

} 18. Nb3 {

[%clk 0:54:50]

}  Bc8 {

[%clk 0:36:21]

} 19. a4 {

[%clk 0:48:28]

}  Nf5 {

[%clk 0:34:04]

} 20. b5 {

[%clk 0:44:50]

}  Nce7 {

[%clk 0:30:12]

} 21. Ba3 {

[%clk 0:39:34]

}  Rf7 {

[%clk 0:25:28]

} 22. bxa6 {

[%clk 0:30:43]

}  Rxa6 {

[%clk 0:25:11]

} 23. Bxe7 {

[%clk 0:29:55]

}  Qxe7 {

[%clk 0:24:41]

} 24. Ne3 {

[%clk 0:27:00]

}  Qd6 {

[%clk 0:14:45]

} 25. Rfc1 {

[%clk 0:13:44]

}  Rf8 {

[%clk 0:14:48]

} 26. Nxf5 {

[%clk 0:11:03]

}  gxf5 {

[%clk 0:15:03]

} 27. Qe3 {

[%clk 0:05:28]

}  f4 {

[%clk 0:12:59]

} 28. gxf4 {

[%clk 0:05:54]

}  Qe7 {

[%clk 0:13:21]

} 29. Qg3 {

[%clk 0:03:23]

}  Bf5 {

[%clk 0:12:52]

} 30. h5 {

[%clk 0:03:10]

}  Kh7 {

[%clk 0:12:32]

} 31. Rc3 {

[%clk 0:02:58]

}  Bf6 {

[%clk 0:10:44]

} 32. Rac1 {

[%clk 0:03:00]

}  Rg8 {

[%clk 0:10:15]

} 33. Qh2 {

[%clk 0:02:41]

}  Rc6 {

[%clk 0:08:36]

} 34. Rg3 {

[%clk 0:00:48]

}  Rxc1+ {

[%clk 0:08:35]

} 35. Nxc1 {

[%clk 0:01:17]

}  Bxd4 {

[%clk 0:02:22]

} 36. Bh3 {

[%clk 0:01:00]

}  Rxg3+ {

[%clk 0:01:04]

} 37. Qxg3 {

[%clk 0:01:27]

}  Qf7 {

[%clk 0:01:20]

} 38. Ne2 {

[%clk 0:01:07]

}  Bg7 {

[%clk 0:01:07]

} 39. Bxf5+ {

[%clk 0:00:51]

}  Qxf5 {

[%clk 0:01:34]

} 40. Qh4 {

[%clk 0:15:44]

}  Bf6 {

[%clk 0:15:51]

} 41. Ng3 {

[%clk 0:13:36]

}  Qe6 {

[%clk 0:09:45]

} 42. f5 {

[%clk 0:12:30]

}  Qc6 {

[%clk 0:08:11]

} 43. Qf4 {

[%clk 0:11:00]

}  Kg7 {

[%clk 0:07:11]

} 44. Kg2 {

[%clk 0:07:18]

}  b6 {

[%clk 0:06:11]

} 45. Kh3 {

[%clk 0:06:03]

}  Qc5 {

[%clk 0:01:19]

} 46. Kg2 {

[%clk 0:05:28]

}  Qe7 {

[%clk 0:01:33]

} 47. Qe3 {

[%clk 0:04:48]

}  Qd6 {

[%clk 0:01:19]

} 48. Qe2 {

[%clk 0:03:34]

}  Bg5 {

[%clk 0:00:41]

} 49. Qa6 {

[%clk 0:03:12]

}  Qc7 {

[%clk 0:00:32]

} 50. Qa8 {

[%clk 0:02:30]

}  Qd7 {

[%clk 0:00:39]

} 51. Qb8 {

[%clk 0:01:49]

}  Bd8 {

[%clk 0:00:42]

} 52. Qe5+ {

[%clk 0:01:58]

}  Bf6 {

[%clk 0:00:44]

} 53. Qb8 {

[%clk 0:01:46]

}  d4 {

[%clk 0:00:36]

} 54. Nxe4 {

[%clk 0:00:43]

}  Qc6 {

[%clk 0:00:38]

} 55. Qg3+ {

[%clk 0:00:54]

}  Kf8 {

[%clk 0:00:58]

} 56. Qd6+ {

[%clk 0:00:46]

}  Qxd6 {

[%clk 0:01:08]

} 57. Nxd6 {

[%clk 0:01:15]

}  d3 {

[%clk 0:00:40]

} 58. Kf3 {

[%clk 0:00:42]

}  Bd4 {

[%clk 0:00:52]

} 59. Nc4 {

[%clk 0:00:53]

}  Kf7 {

[%clk 0:00:39]

} 60. Ke4 {

[%clk 0:01:04]

}  Bxf2 {

[%clk 0:01:05]

} 61. Kxd3 {

[%clk 0:01:30]

}  Kf6 {

[%clk 0:01:34]

} 62. Ke4 {

[%clk 0:01:35]

}  Kg5 {

[%clk 0:02:02]

} 63. Ke5 {

[%clk 0:01:32]

}  Kxh5 {

[%clk 0:02:28]

} 64. Ke6 {

[%clk 0:01:29]

}  Kg5 {

[%clk 0:01:58]

} 65. f6 {

[%clk 0:01:47]

}  Bc5 {

[%clk 0:02:14]

} 66. f7 {

[%clk 0:00:44]

}  Kg6 {

[%clk 0:02:34]

} 67. Nxb6 {

[%clk 0:00:46]

} 1-0

[Event "Estonian Chess Championship 2025"]
[Site "Tallinn, EE"]
[Date "2025.12.11"]
[Round "1.1"]
[White "Vorobjov, Pavel"]
[Black "Rychagov, Nikita"]
[Result "1-0"]
[Board "7"]
[TimeControl "5400+30"]
[WhiteFideId "4500989"]
[BlackFideId "4508394"]
[BlackTitle "CM"]
[WhiteElo "2229"]
[BlackElo "2222"]
[WhiteTeam "EST"]
[BlackTeam "EST"]
[WhiteClock "0:50:34"]
[BlackClock "1:23:23"]
[Variant "Standard"]

1. Nf3 {

[%clk 1:30:55]

}  d5 {

[%clk 1:30:54]

} 2. g3 {

[%clk 1:31:18]

}  c5 {

[%clk 1:31:18]

} 3. Bg2 {

[%clk 1:31:26]

}  Nc6 {

[%clk 1:30:59]

} 4. d4 {

[%clk 1:31:42]

}  Nf6 {

[%clk 1:31:22]

} 5. O-O {

[%clk 1:31:15]

}  e6 {

[%clk 1:30:08]

} 6. c4 {

[%clk 1:29:50]

}  dxc4 {

[%clk 1:30:32]

} 7. dxc5 {

[%clk 1:28:41]

}  Qxd1 {

[%clk 1:30:54]

} 8. Rxd1 {

[%clk 1:29:07]

}  Bxc5 {

[%clk 1:31:19]

} 9. Nbd2 {

[%clk 1:27:59]

}  c3 {

[%clk 1:30:50]

} 10. bxc3 {

[%clk 1:27:53]

}  O-O {

[%clk 1:31:10]

} 11. Nb3 {

[%clk 1:25:01]

}  Be7 {

[%clk 1:31:34]

} 12. Nfd4 {

[%clk 1:20:31]

}  Nxd4 {

[%clk 1:31:57]

} 13. cxd4 {

[%clk 1:20:00]

}  Nd5 {

[%clk 1:32:08]

} 14. Bd2 {

[%clk 1:17:28]

}  f5 {

[%clk 1:31:41]

} 15. Na5 {

[%clk 1:03:49]

}  b6 {

[%clk 1:29:09]

} 16. Nc6 {

[%clk 1:01:41]

}  Ba3 {

[%clk 1:23:14]

} 17. Bxd5 {

[%clk 0:49:58]

}  exd5 {

[%clk 1:23:39]

} 18. Bb4 {

[%clk 0:50:19]

}  Rf6 {

[%clk 1:23:23]

} 19. Ne7+ {

[%clk 0:50:34]

} 1-0